fUST/lending_fUST_20240825
["ID","MTS","AMOUNT","RATE_DAILY","PERIOD"]
[335851721,1724531519298,-500.0,0.00017808,2]
[335851722,1724531519307,-941.9,0.00017808,2]
[335851723,1724531519316,-1832.98,0.00017808,2]
[335851724,1724531519326,-1070.08,0.00017808,2]
[335851725,1724531519337,-11259.44,0.00017808,2]
[335851726,1724531519346,-151.0,0.0001789,2]
[335851727,1724531519355,-19860.18303358,0.00017898,2]
[335851728,1724531519364,-1499.999999,0.00018,2]
[335851729,1724531519373,-271.01261301,0.0001806,2]
[335851730,1724531519382,-813.56,0.00018082,2]
[335851731,1724531519392,-734.4,0.00018082,2]
[335851732,1724531519401,-603.04,0.00018082,2]
[335851733,1724531519410,-622.05,0.00018082,2]
[335851734,1724531519419,-500.0,0.00018082,2]
[335851735,1724531519429,-500.0,0.00018082,2]
[335851736,1724531519438,-519.65,0.00018082,2]
[335851737,1724531519447,-713.04,0.00018082,2]
[335851738,1724531519456,-530.24,0.00018082,2]
[335851739,1724531519465,-602.6,0.00018082,2]
[335851740,1724531519474,-310.12,0.00018082,2]
[335851741,1724531519484,-784.11,0.00018082,2]
[335851742,1724531519495,-563.59,0.00018082,2]
[335851743,1724531519504,-891.68,0.00018082,2]
[335851744,1724531519515,-805.77,0.00018082,2]
[335851745,1724531519524,-569.79,0.00018082,2]
[335851746,1724531519534,-523.9,0.00018082,2]
[335851747,1724531519542,-562.45,0.00018082,2]
[335851748,1724531519552,-962.65,0.00018082,2]
[335851749,1724531519561,-559.36,0.00018082,2]
[335851750,1724531519570,-586.18,0.00018082,2]
[335851751,1724531519578,-807.15,0.00018082,2]
[335851752,1724531519598,-583.94,0.00018082,2]
[335851753,1724531519607,-533.88,0.00018082,2]
[335851754,1724531519616,-760.25,0.00018082,2]
[335851755,1724531519625,-583.15,0.00018082,2]
[335851756,1724531519634,-863.95,0.00018082,2]
[335851757,1724531519643,-520.2,0.00018082,2]
[335851758,1724531519652,-500.0,0.00018082,2]
[335851759,1724531519661,-1365.0,0.00018082,2]
[335851760,1724531519671,-850.08,0.00018082,2]
[335851761,1724531519680,-752.47,0.00018082,2]
[335851762,1724531519690,-1109.59,0.00018082,2]
[335851763,1724531519700,-706.93,0.00018082,2]
[335851764,1724531519710,-268.89573344,0.00018082,2]
[335851765,1724531519721,-576.76,0.00018082,2]
[335851766,1724531519732,-823.53,0.00018082,2]
[335851767,1724531519742,-500.0,0.00018082,2]
[335851768,1724531519751,-510.73402483,0.00018082,2]
[335851769,1724531519762,-526.81,0.00018082,2]
[335851770,1724531519773,-512.82583401,0.00018082,2]
[335851771,1724531519782,-677.32,0.00018082,2]
[335851772,1724531519792,-500.0,0.00018082,2]
[335851773,1724531519801,-181.60936074,0.00018082,2]
[335851774,1724531519810,-929.47,0.00018082,2]
[335851775,1724531519820,-500.0,0.00018082,2]
[335851776,1724531519829,-748.15,0.00018082,2]
[335851777,1724531519840,-534.28,0.00018082,2]
[335851778,1724531519850,-495.62956282,0.00018082,2]
[335851779,1724531519860,-774.94,0.00018082,2]
[335851780,1724531519869,-1168.85,0.00018082,2]
[335851781,1724531519878,-1085.43,0.00018082,2]
[335851782,1724531519887,-1002.47,0.00018082,2]
[335851783,1724531519896,-639.11,0.00018082,2]
[335851784,1724531519906,-500.0,0.00018082,2]
[335851785,1724531519915,-926.86,0.00018082,2]
[335851786,1724531519924,-761.14,0.00018082,2]
[335851787,1724531519933,-526.71,0.00018082,2]
[335851788,1724531519942,-500.0,0.00018082,2]
[335851789,1724531519953,-744.22,0.00018082,2]
[335851790,1724531519964,-631.93,0.00018082,2]
[335851791,1724531519973,-2112.1,0.00018082,2]
[335851792,1724531519982,-592.66,0.00018082,2]
[335851793,1724531519991,-884.46,0.00018082,2]
[335851794,1724531520000,-500.0,0.00018082,2]
[335851795,1724531520010,-2931.13,0.00018082,2]
[335851796,1724531520019,-1078.65,0.00018082,2]
[335851797,1724531520028,-193.66145104,0.00018082,2]
[335851798,1724531520037,-500.0,0.00018082,2]
[335851799,1724531520049,-618.62,0.00018082,2]
[335851800,1724531520062,-816.32,0.00018082,2]
[335851801,1724531520070,-800.21,0.00018082,2]
[335851802,1724531520080,-781.63,0.00018082,2]
[335851803,1724531520090,-500.0,0.00018082,2]
[335851804,1724531520101,-1221.12,0.00018082,2]
[335851805,1724531520110,-646.32,0.00018082,2]
[335851806,1724531520120,-500.0,0.00018082,2]
[335851807,1724531520130,-2043.72,0.00018082,2]
[335851808,1724531520140,-1010.23,0.00018082,2]
[335851809,1724531520149,-766.22,0.00018082,2]
[335851810,1724531520159,-799.71,0.00018082,2]
[335851811,1724531520169,-502.44,0.00018082,2]
[335851812,1724531520181,-500.13,0.00018082,2]
[335851813,1724531520192,-578.8,0.00018082,2]
[335851814,1724531520202,-500.0,0.00018082,2]
[335851815,1724531520211,-594.16,0.00018082,2]
[335851816,1724531520221,-1288.02,0.00018082,2]
[335851817,1724531520231,-969.48,0.00018082,2]
[335851818,1724531520241,-500.0,0.00018082,2]
[335851819,1724531520251,-1368.37,0.00018082,2]
[335851820,1724531520260,-500.0,0.00018082,2]
[335851821,1724531520270,-1302.49,0.00018082,2]
[335851822,1724531520279,-500.0,0.00018082,2]
[335851823,1724531520289,-675.1,0.00018082,2]
[335851824,1724531520300,-500.0,0.00018082,2]
[335851825,1724531520309,-872.09,0.00018082,2]
[335851826,1724531520318,-852.86,0.00018082,2]
[335851827,1724531520328,-500.0,0.00018082,2]
[335851828,1724531520338,-1320.03,0.00018082,2]
[335851829,1724531520348,-2614.24,0.00018082,2]
[335851830,1724531520357,-1263.51,0.00018082,2]
[335851831,1724531520366,-1424.95,0.00018082,2]
[335851832,1724531520375,-2728.43,0.00018082,2]
[335851833,1724531520385,-1292.45,0.00018082,2]
[335851834,1724531520395,-507.92,0.00018082,2]
[335851835,1724531520405,-688.45,0.00018082,2]
[335851836,1724531520415,-500.0,0.00018082,2]
[335851837,1724531520425,-1410.25,0.00018082,2]
[335851838,1724531520435,-754.58,0.00018082,2]
[335851839,1724531520444,-2375.92,0.00018082,2]
[335851840,1724531520454,-500.0,0.00018082,2]
[335851841,1724531520463,-1921.55,0.00018082,2]
[335851842,1724531520472,-980.6,0.00018082,2]
[335851843,1724531520481,-500.0,0.00018082,2]
[335851844,1724531520491,-500.0,0.00018082,2]
[335851845,1724531520500,-999.26,0.00018082,2]
[335851846,1724531520509,-1062.09,0.00018082,2]
[335851847,1724531520519,-637.81,0.00018082,2]
[335851848,1724531520528,-1225.13,0.00018082,2]
[335851849,1724531520538,-800.8,0.00018082,2]
[335851850,1724531520547,-500.0,0.00018082,2]
[335851851,1724531520556,-1128.59,0.00018082,2]
[335851852,1724531520565,-819.98,0.00018082,2]
[335851853,1724531520574,-548.82,0.00018082,2]
[335851854,1724531520583,-1212.1,0.00018082,2]
[335851855,1724531520593,-1327.62,0.00018082,2]
[335851856,1724531520603,-500.0,0.00018082,2]
[335851857,1724531520612,-816.93,0.00018082,2]
[335851858,1724531520622,-1347.74,0.00018082,2]
[335851859,1724531520632,-654.44,0.00018082,2]
[335851860,1724531520642,-1183.71,0.00018082,2]
[335851861,1724531520651,-500.0,0.00018082,2]
[335851862,1724531520661,-500.0,0.00018082,2]
[335851863,1724531520671,-500.0,0.00018082,2]
[335851864,1724531520680,-500.0,0.00018082,2]
[335851865,1724531520689,-1399.1,0.00018082,2]
[335851866,1724531520698,-1258.48,0.00018082,2]
[335851867,1724531520708,-908.55,0.00018082,2]
[335851868,1724531520717,-669.53,0.00018082,2]
[335851869,1724531520726,-833.72,0.00018082,2]
[335851870,1724531520735,-675.35,0.00018082,2]
[335851871,1724531520745,-626.94,0.00018082,2]
[335851872,1724531520755,-1045.54,0.00018082,2]
[335851873,1724531520764,-707.88,0.00018082,2]
[335851874,1724531520773,-1304.4,0.00018082,2]
[335851875,1724531520783,-1138.3,0.00018082,2]
[335851876,1724531520793,-1291.63,0.00018082,2]
[335851877,1724531520802,-500.0,0.00018082,2]
[335851878,1724531520811,-622.87,0.00018082,2]
[335851879,1724531520821,-701.54,0.00018082,2]
[335851880,1724531520830,-1511.45,0.00018082,2]
[335851881,1724531520839,-1658.12,0.00018082,2]
[335851882,1724531520849,-842.01,0.00018082,2]
[335851883,1724531520858,-500.0,0.00018082,2]
[335851884,1724531520867,-789.09,0.00018082,2]
[335851885,1724531520876,-615.1,0.00018082,2]
[335851886,1724531520886,-697.2,0.00018082,2]
[335851887,1724531520896,-500.0,0.00018082,2]
[335851888,1724531520905,-805.35,0.00018082,2]
[335851889,1724531520914,-1362.32,0.00018082,2]
[335851890,1724531520924,-624.92,0.00018082,2]
[335851891,1724531520933,-983.04,0.00018082,2]
[335851892,1724531520942,-530.79,0.00018082,2]
[335851893,1724531520952,-1060.9,0.00018082,2]
[335851894,1724531520961,-609.17,0.00018082,2]
[335851895,1724531520970,-569.95,0.00018082,2]
[335851896,1724531520979,-509.84,0.00018082,2]
[335851897,1724531520988,-1647.52,0.00018082,2]
[335851898,1724531520999,-371.14177113,0.00018082,2]
[335851899,1724531521008,-2067.06,0.00018082,2]
[335851900,1724531521018,-551.95,0.00018082,2]
[335851901,1724531521027,-2076.6,0.00018082,2]
[335851902,1724531521036,-733.55,0.00018082,2]
[335851903,1724531521045,-1212.03,0.00018082,2]
[335851904,1724531521058,-824.83,0.00018082,2]
[335851905,1724531521067,-541.05,0.00018082,2]
[335851906,1724531521075,-706.53,0.00018082,2]
[335851907,1724531521085,-1031.72,0.00018082,2]
[335851908,1724531521096,-426.90812536,0.00018082,2]
[335851909,1724531521105,-821.42,0.00018082,2]
[335851910,1724531521116,-1269.14,0.00018082,2]
[335851911,1724531521128,-550.91,0.00018082,2]
[335851912,1724531521140,-564.78,0.00018082,2]
[335851913,1724531521151,-2330.5,0.00018082,2]
[335851914,1724531521162,-500.0,0.00018082,2]
[335851915,1724531521172,-574.48048321,0.00018082,2]
[335851916,1724531521182,-536.71,0.00018082,2]
[335851917,1724531521191,-2051.66,0.00018082,2]
[335851918,1724531521201,-398.4625758,0.00018082,2]
[335851919,1724531521210,-1362.21,0.00018082,2]
[335851920,1724531521219,-5397.94,0.00018082,2]
[335851921,1724531521228,-6804.12,0.00018082,2]
[335851922,1724531521238,-884.96,0.00018082,2]
[335851923,1724531521247,-648.45,0.00018082,2]
[335851924,1724531521257,-686.18,0.00018082,2]
[335851925,1724531521267,-1785.1,0.00018082,2]
[335851926,1724531521276,-711.95,0.00018082,2]
[335851927,1724531521286,-3273.28,0.00018082,2]
[335851928,1724531521295,-1293.47,0.00018082,2]
[335851929,1724531521305,-1164.49,0.00018082,2]
[335851930,1724531521314,-3352.92,0.00018082,2]
[335851931,1724531521323,-500.0,0.00018082,2]
[335851932,1724531521333,-730.3,0.00018082,2]
[335851933,1724531521342,-747.91,0.00018082,2]
[335851934,1724531521352,-1003.19,0.00018082,2]
[335851935,1724531521361,-1036.67,0.00018082,2]
[335851936,1724531521370,-3007.21,0.00018082,2]
[335851937,1724531521379,-598.05,0.00018082,2]
[335851938,1724531521388,-1648.7,0.00018082,2]
[335851939,1724531521397,-500.0,0.00018082,2]
[335851940,1724531521407,-2248.02,0.00018082,2]
[335851941,1724531521416,-940.59,0.00018082,2]
[335851942,1724531521426,-896.98,0.00018082,2]
[335851943,1724531521435,-762.45,0.00018082,2]
[335851944,1724531521444,-896.49,0.00018082,2]
[335851945,1724531521454,-613.35,0.00018082,2]
[335851946,1724531521463,-7990.85,0.00018082,2]
[335851947,1724531521473,-500.0,0.00018082,2]
[335851948,1724531521483,-3087.13,0.00018082,2]
[335851949,1724531521494,-1632.06,0.00018082,2]
[335851950,1724531521503,-570.3,0.00018082,2]
[335851951,1724531521512,-3378.83,0.00018082,2]
[335851952,1724531521521,-963.5,0.00018082,2]
[335851953,1724531521531,-764.0,0.00018082,2]
[335851954,1724531521540,-644.41,0.00018082,2]
[335851955,1724531521549,-1924.56,0.00018082,2]
[335851956,1724531521558,-5273.79,0.00018082,2]
[335851957,1724531521567,-896.55,0.00018082,2]
[335851958,1724531521577,-10892.31,0.00018082,2]
[335851959,1724531521586,-7921.53,0.00018082,2]
[335851960,1724531521596,-3022.35,0.00018082,2]
[335851961,1724531521605,-663.04,0.00018082,2]
[335851962,1724531521615,-775.53,0.00018082,2]
[335851963,1724531521624,-1062.57,0.00018082,2]
[335851964,1724531521634,-637.96,0.00018082,2]
[335851965,1724531521643,-670.81,0.00018082,2]
[335851966,1724531521653,-1720.57,0.00018082,2]
[335851967,1724531521663,-660.87,0.00018082,2]
[335851968,1724531521672,-802.38,0.00018082,2]
[335851969,1724531521682,-1839.52,0.00018082,2]
[335851970,1724531521691,-22051.78,0.00018082,2]
[335851971,1724531521701,-2124.46,0.00018082,2]
[335851972,1724531521713,-823.68,0.00018082,2]
[335851973,1724531521723,-2260.21,0.00018082,2]
[335851974,1724531521734,-823.85,0.00018082,2]
[335851975,1724531521744,-968.76,0.00018082,2]
[335851976,1724531521753,-4073.78,0.00018082,2]
[335851977,1724531521764,-500.0,0.00018082,2]
[335851978,1724531521773,-500.0,0.00018082,2]
[335851979,1724531521783,-805.16,0.00018082,2]
[335851980,1724531521793,-728.77,0.00018082,2]
[335851981,1724531521802,-500.0,0.00018082,2]
[335851982,1724531521979,-500.0,0.00018082,2]
[335851983,1724531521990,-591.04,0.00018082,2]
[335851984,1724531522000,-9393.57,0.00018082,2]
[335851985,1724531522009,-3343.01,0.00018082,2]
[335851986,1724531522019,-1899.14,0.00018082,2]
[335851987,1724531522030,-1029.65,0.00018082,2]
[335851988,1724531522040,-721.66,0.00018082,2]
[335851989,1724531522053,-734.3,0.00018082,2]
[335851990,1724531522063,-1502.18,0.00018082,2]
[335851991,1724531522072,-2917.34,0.00018082,2]
[335851992,1724531522082,-1262.64,0.00018082,2]
[335851993,1724531522093,-1438.33,0.00018082,2]
[335851994,1724531522103,-3106.9,0.00018082,2]
[335851995,1724531522113,-14408.06,0.00018082,2]
[335851996,1724531522123,-2712.11,0.00018082,2]
[335851997,1724531522134,-2193.8,0.00018082,2]
[335851998,1724531522144,-2815.63,0.00018082,2]
[335851999,1724531522154,-2259.87,0.00018082,2]
[335852000,1724531522164,-627.85,0.00018082,2]
[335852001,1724531522174,-1129.92,0.00018082,2]
[335852002,1724531522184,-789.7,0.00018082,2]
[335852003,1724531522194,-2350.51,0.00018082,2]
[335852004,1724531522203,-2327.67,0.00018082,2]
[335852005,1724531522213,-741.25,0.00018082,2]
[335852006,1724531522222,-2773.88,0.00018082,2]
[335852007,1724531522232,-1842.59,0.00018082,2]
[335852008,1724531522241,-500.0,0.00018082,2]
[335852009,1724531522251,-4763.79,0.00018082,2]
[335852010,1724531522261,-1819.59,0.00018082,2]
[335852011,1724531522271,-621.55,0.00018082,2]
[335852012,1724531522280,-3461.51,0.00018082,2]
[335852013,1724531522290,-1288.14,0.00018082,2]
[335852014,1724531522300,-807.08,0.00018082,2]
[335852015,1724531522311,-679.29,0.00018082,2]
[335852016,1724531522321,-7396.52,0.00018082,2]
[335852017,1724531522332,-814.15,0.00018082,2]
[335852018,1724531522347,-20361.09,0.00018082,2]
[335852019,1724531522358,-904.12,0.00018082,2]
[335852020,1724531522368,-2226.72,0.00018082,2]
[335852021,1724531522378,-10180.43,0.00018082,2]
[335852022,1724531522388,-11201.75,0.00018082,2]
[335852023,1724531522397,-1538.63,0.00018082,2]
[335852024,1724531522407,-718.11,0.00018082,2]
[335852025,1724531522417,-699.61,0.00018082,2]
[335852026,1724531522427,-2896.04,0.00018082,2]
[335852027,1724531522436,-3039.26,0.00018082,2]
[335852028,1724531522446,-2034.56,0.00018082,2]
[335852029,1724531522456,-685.31,0.00018082,2]
[335852030,1724531522466,-500.0,0.00018082,2]
[335852031,1724531522476,-1232.81,0.00018082,2]
[335852032,1724531522486,-941.9,0.00018082,2]
[335852033,1724531522495,-1832.98,0.00018082,2]
[335852034,1724531522505,-1070.08,0.00018082,2]
[335852035,1724531522515,-850.0,0.00018108,2]
[335852036,1724531522525,-813.56,0.00018356,2]
[335852037,1724531522534,-734.4,0.00018356,2]
[335852038,1724531522544,-603.04,0.00018356,2]
[335852039,1724531522553,-622.05,0.00018356,2]
[335852040,1724531522563,-500.0,0.00018356,2]
[335852041,1724531522572,-500.0,0.00018356,2]
[335852042,1724531522581,-519.65,0.00018356,2]
[335852043,1724531522591,-713.04,0.00018356,2]
[335852044,1724531522601,-530.24,0.00018356,2]
[335852045,1724531522611,-602.6,0.00018356,2]
[335852046,1724531522621,-310.12,0.00018356,2]
[335852047,1724531522631,-784.11,0.00018356,2]
[335852048,1724531522640,-563.59,0.00018356,2]
[335852049,1724531522650,-891.68,0.00018356,2]
[335852050,1724531522660,-805.77,0.00018356,2]
[335852051,1724531522669,-569.79,0.00018356,2]
[335852052,1724531522678,-523.9,0.00018356,2]
[335852053,1724531522688,-562.45,0.00018356,2]
[335852054,1724531522698,-962.65,0.00018356,2]
[335852055,1724531522707,-559.36,0.00018356,2]
[335852056,1724531522717,-586.18,0.00018356,2]
[335852057,1724531522728,-807.15,0.00018356,2]
[335852058,1724531522739,-583.94,0.00018356,2]
[335852059,1724531522750,-533.88,0.00018356,2]
[335852060,1724531522760,-760.25,0.00018356,2]
[335852061,1724531522770,-583.15,0.00018356,2]
[335852062,1724531522780,-863.95,0.00018356,2]
[335852063,1724531522789,-520.2,0.00018356,2]
[335852064,1724531522799,-500.0,0.00018356,2]
[335852065,1724531522809,-1365.0,0.00018356,2]
[335852066,1724531522819,-850.08,0.00018356,2]
[335852067,1724531522829,-752.47,0.00018356,2]
[335852068,1724531522839,-1109.59,0.00018356,2]
[335852069,1724531522849,-706.93,0.00018356,2]
[335852070,1724531522859,-576.76,0.00018356,2]
[335852071,1724531522869,-823.53,0.00018356,2]
[335852072,1724531522880,-500.0,0.00018356,2]
[335852073,1724531522890,-526.81,0.00018356,2]
[335852074,1724531522899,-677.32,0.00018356,2]
[335852075,1724531522909,-625.71358972,0.00018356,2]
[335852076,1724531522919,-929.47,0.00018356,2]
[335852077,1724531522930,-500.0,0.00018356,2]
[335852078,1724531522939,-534.28,0.00018356,2]
[335852079,1724531522949,-748.15,0.00018356,2]
[335852080,1724531522959,-774.94,0.00018356,2]
[335852081,1724531522968,-1168.85,0.00018356,2]
[335852082,1724531522978,-1085.43,0.00018356,2]
[335852083,1724531522987,-1002.47,0.00018356,2]
[335852084,1724531522998,-639.11,0.00018356,2]
[335852085,1724531523007,-926.86,0.00018356,2]
[335852086,1724531523017,-596.71628458,0.00018356,2]
[335852087,1724531523027,-761.14,0.00018356,2]
[335852088,1724531523036,-526.71,0.00018356,2]
[335852089,1724531523047,-500.0,0.00018356,2]
[335852090,1724531523061,-744.22,0.00018356,2]
[335852091,1724531523071,-631.93,0.00018356,2]
[335852092,1724531523081,-592.66,0.00018356,2]
[335852093,1724531523092,-2112.1,0.00018356,2]
[335852094,1724531523101,-884.46,0.00018356,2]
[335852095,1724531523111,-500.0,0.00018356,2]
[335852096,1724531523120,-2931.13,0.00018356,2]
[335852097,1724531523130,-1078.65,0.00018356,2]
[335852098,1724531523139,-191.64350875,0.00018356,2]
[335852099,1724531523149,-618.62,0.00018356,2]
[335852100,1724531523160,-816.32,0.00018356,2]
[335852101,1724531523170,-800.21,0.00018356,2]
[335852102,1724531523181,-781.63,0.00018356,2]
[335852103,1724531523191,-500.0,0.00018356,2]
[335852104,1724531523200,-1221.12,0.00018356,2]
[335852105,1724531523210,-646.32,0.00018356,2]
[335852106,1724531523220,-500.0,0.00018356,2]
[335852107,1724531523230,-2043.72,0.00018356,2]
[335852108,1724531523241,-1010.23,0.00018356,2]
[335852109,1724531523251,-766.22,0.00018356,2]
[335852110,1724531523262,-799.71,0.00018356,2]
[335852111,1724531523272,-502.44,0.00018356,2]
[335852112,1724531523282,-500.13,0.00018356,2]
[335852113,1724531523292,-578.8,0.00018356,2]
[335852114,1724531523303,-500.0,0.00018356,2]
[335852115,1724531523313,-594.16,0.00018356,2]
[335852116,1724531523323,-1288.02,0.00018356,2]
[335852117,1724531523334,-969.48,0.00018356,2]
[335852118,1724531523344,-500.0,0.00018356,2]
[335852119,1724531523354,-1368.37,0.00018356,2]
[335852120,1724531523364,-276.44540725,0.00018356,2]
[335852121,1724531523373,-1302.49,0.00018356,2]
[335852122,1724531523383,-500.0,0.00018356,2]
[335852123,1724531523394,-675.1,0.00018356,2]
[335852124,1724531523405,-500.0,0.00018356,2]
[335852125,1724531523415,-872.09,0.00018356,2]
[335852126,1724531523425,-852.86,0.00018356,2]
[335852127,1724531523434,-500.0,0.00018356,2]
[335852128,1724531523444,-1320.03,0.00018356,2]
[335852129,1724531523454,-2614.24,0.00018356,2]
[335852130,1724531523465,-1263.51,0.00018356,2]
[335852131,1724531523474,-1424.95,0.00018356,2]
[335852132,1724531523484,-2728.43,0.00018356,2]
[335852133,1724531523495,-1292.45,0.00018356,2]
[335852134,1724531523505,-507.92,0.00018356,2]
[335852135,1724531523515,-688.45,0.00018356,2]
[335852136,1724531523525,-500.0,0.00018356,2]
[335852137,1724531523535,-1410.25,0.00018356,2]
[335852138,1724531523545,-754.58,0.00018356,2]
[335852139,1724531523555,-2375.92,0.00018356,2]
[335852140,1724531523566,-500.0,0.00018356,2]
[335852141,1724531523576,-1921.55,0.00018356,2]
[335852142,1724531523586,-980.6,0.00018356,2]
[335852143,1724531523596,-500.0,0.00018356,2]
[335852144,1724531523607,-500.0,0.00018356,2]
[335852145,1724531523617,-999.26,0.00018356,2]
[335852146,1724531523627,-1062.09,0.00018356,2]
[335852147,1724531523636,-637.81,0.00018356,2]
[335852148,1724531523646,-1225.13,0.00018356,2]
[335852149,1724531523656,-800.8,0.00018356,2]
[335852150,1724531523666,-500.0,0.00018356,2]
[335852151,1724531523676,-1128.59,0.00018356,2]
[335852152,1724531523686,-819.98,0.00018356,2]
[335852153,1724531523696,-548.82,0.00018356,2]
[335852154,1724531523706,-1327.62,0.00018356,2]
[335852155,1724531523716,-1212.1,0.00018356,2]
[335852156,1724531523726,-500.0,0.00018356,2]
[335852157,1724531523736,-816.93,0.00018356,2]
[335852158,1724531523748,-1347.74,0.00018356,2]
[335852159,1724531523760,-654.44,0.00018356,2]
[335852160,1724531523769,-1183.71,0.00018356,2]
[335852161,1724531523780,-500.0,0.00018356,2]
[335852162,1724531523790,-428.32148315,0.00018356,2]
[335852163,1724531523801,-500.0,0.00018356,2]
[335852164,1724531523810,-500.0,0.00018356,2]
[335852165,1724531523820,-1399.1,0.00018356,2]
[335852166,1724531523830,-1258.48,0.00018356,2]
[335852167,1724531523840,-669.53,0.00018356,2]
[335852168,1724531523851,-908.55,0.00018356,2]
[335852169,1724531523861,-833.72,0.00018356,2]
[335852170,1724531523871,-675.35,0.00018356,2]
[335852171,1724531523881,-626.94,0.00018356,2]
[335852172,1724531523892,-1045.54,0.00018356,2]
[335852173,1724531523902,-707.88,0.00018356,2]
[335852174,1724531523912,-1304.4,0.00018356,2]
[335852175,1724531523922,-1138.3,0.00018356,2]
[335852176,1724531523931,-1291.63,0.00018356,2]
[335852177,1724531523941,-500.0,0.00018356,2]
[335852178,1724531523951,-622.87,0.00018356,2]
[335852179,1724531523961,-701.54,0.00018356,2]
[335852180,1724531523972,-1511.45,0.00018356,2]
[335852181,1724531523982,-1658.12,0.00018356,2]
[335852182,1724531523993,-842.01,0.00018356,2]
[335852183,1724531524003,-500.0,0.00018356,2]
[335852184,1724531524013,-789.09,0.00018356,2]
[335852185,1724531524023,-615.1,0.00018356,2]
[335852186,1724531524034,-697.2,0.00018356,2]
[335852187,1724531524045,-500.0,0.00018356,2]
[335852188,1724531524060,-805.35,0.00018356,2]
[335852189,1724531524070,-1362.32,0.00018356,2]
[335852190,1724531524080,-624.92,0.00018356,2]
[335852191,1724531524092,-983.04,0.00018356,2]
[335852192,1724531524101,-530.79,0.00018356,2]
[335852193,1724531524110,-1060.9,0.00018356,2]
[335852194,1724531524120,-609.17,0.00018356,2]
[335852195,1724531524132,-569.95,0.00018356,2]
[335852196,1724531524141,-509.84,0.00018356,2]
[335852197,1724531524151,-1647.52,0.00018356,2]
[335852198,1724531524161,-2067.06,0.00018356,2]
[335852199,1724531524170,-551.95,0.00018356,2]
[335852200,1724531524179,-2076.6,0.00018356,2]
[335852201,1724531524189,-733.55,0.00018356,2]
[335852202,1724531524198,-1212.03,0.00018356,2]
[335852203,1724531524209,-824.83,0.00018356,2]
[335852204,1724531524219,-541.05,0.00018356,2]
[335852205,1724531524229,-706.53,0.00018356,2]
[335852206,1724531524238,-1031.72,0.00018356,2]
[335852207,1724531524248,-821.42,0.00018356,2]
[335852208,1724531524258,-1269.14,0.00018356,2]
[335852209,1724531524268,-550.91,0.00018356,2]
[335852210,1724531524277,-564.78,0.00018356,2]
[335852211,1724531524287,-2330.5,0.00018356,2]
[335852212,1724531524297,-500.0,0.00018356,2]
[335852213,1724531524307,-536.71,0.00018356,2]
[335852214,1724531524316,-2051.66,0.00018356,2]
[335852215,1724531524326,-1362.21,0.00018356,2]
[335852216,1724531524335,-5397.94,0.00018356,2]
[335852217,1724531524345,-6804.12,0.00018356,2]
[335852218,1724531524354,-884.96,0.00018356,2]
[335852219,1724531524363,-648.45,0.00018356,2]
[335852220,1724531524373,-686.18,0.00018356,2]